{"text_format":"1","workbook":"xlsx","n_sheets":2,"sheets":["что есть","как должно быть"],"not_rendered":{"charts":0,"images":0,"macros":0,"external_links":0,"defined_names":2,"comments":1,"pivot_tables":0},"unopened":[],"bounds":{"document_bytes":16777216,"sheet_cells":100000,"rows_first":2000,"rows_last":500,"rows_between":2000,"halvings":0,"cell_chars":16384,"cell_head_chars":4096},"cells_cut":0,"cells_raw":0,"read":"whole","date_system":"1900"}

{"sheet":"что есть","index":0,"n_rows":29,"n_cols":6,"rows_kept":29,"cut":false,"hidden":false,"merged":[]}
[null,null,"АвтоЗаголовок","Здесь будет первый столбец","длина\nmax 35","Здесь будет второй столбец"]
[1,null,"В печальной праздности я лиру забывал,",null,{"$f":"IF(D2=\"\",\"\",LEN(D2))","v":""}]
[2,null,"Воображение в мечтах не разгоралось!",null,{"$f":"IF(D3=\"\",\"\",LEN(D3))","v":""}]
[3,null,"С дарами юности мой гений отлетал,",null,""]
[4,null,"И сердце медленно хладело, закрывалось.",null,""]
[5,null,"Вас вновь я призывал, о дни моей весны,",null,""]
[6,null,"Вы, пролетевшие под сенью тишины,",null,""]
[7,null,"Дни дружества, любви, надежд и грусти нежной,",null,""]
[8,null,"Когда, поэзии поклонник безмятежный!",null,""]
[9,null,"На лире счастливой я тихо воспевал",null,""]
[10,null,"Волнение любви, уныние разлуки —",null,""]
[11,null,"И гул дубрав горам передавал",null,""]
[12,null,"Мои задумчивые звуки...",null,""]
[13,null,"Напрасно! Я влачил постыдной лени груз,",null,""]
[14,null,"В дремоту хладную невольно погружался,",null,""]
[15,null,"Бежал от радостей, бежал от милых муз",null,""]
[16,null,"И — слезы на глазах — со славою прощался!",null,""]
[17,null,"Но вдруг, как молнии стрела,",null,""]
[18,null,"Зажглась в увядшем сердце младость,",null,""]
[19,null,"Душа проснулась, ожила,",null,""]
[20,null,"Узнала вновь любви надежду, скорбь и радость.",null,""]
[21,null,"Все снова расцвело! Я жизнью трепетал;",null,""]
[22,null,"Природы вновь восторженный свидетель,",null,""]
[23,null,"Живее чувствовал, свободнее дышал,",null,""]
[24,null,"Сильней пленяла добродетель...",null,""]
[25,null,"Хвала любви, хвала богам!",null,""]
[26,null,"Вновь лиры сладостной раздался голос юный,",null,""]
[27,null,"И с звонким трепетом воскреснувшие струны",null,""]
[28,null,"Несу к твоим ногам!..",null,""]

{"sheet":"как должно быть","index":1,"n_rows":29,"n_cols":6,"rows_kept":29,"cut":false,"hidden":false,"merged":[]}
[null,null,"АвтоЗаголовок","Здесь будет первый столбец \nБЕЗ ПРОБЕЛОВ НА КОНЦЕ","длина\nmax 35","Здесь будет второй столбец\nБЕЗ ПРОБЕЛОВ В НАЧАЛЕ"]
[1,null,"В печальной праздности я лиру забывал,",{"$f":"TRIM(SUBSTITUTE(C2,F2,))","v":"В печальной праздности я лиру"},{"$f":"IF(D2=\"\",\"\",LEN(D2))","v":29},"забывал,"]
[2,null,"Воображение в мечтах не разгоралось!","Воображение в мечтах не разгоралось",{"$f":"IF(D3=\"\",\"\",LEN(D3))","v":35}]
[3,null,"С дарами юности мой гений отлетал,","С дарами юности мой гений отлетал,",{"$f":"IF(D4=\"\",\"\",LEN(D4))","v":34}]
[4,null,"И сердце медленно хладело, закрывалось.",{"$f":"TRIM(SUBSTITUTE(C5,F5,))","v":"И сердце медленно хладело,"},{"$f":"IF(D5=\"\",\"\",LEN(D5))","v":26},"закрывалось."]
[5,null,"Вас вновь я призывал, о дни моей весны,",{"$f":"TRIM(SUBSTITUTE(C6,F6,))","v":"Вас вновь я призывал, о дни моей"},{"$f":"IF(D6=\"\",\"\",LEN(D6))","v":32},"весны,"]
[6,null,"Вы, пролетевшие под сенью тишины,","Вы, пролетевшие под сенью тишины,",{"$f":"IF(D7=\"\",\"\",LEN(D7))","v":33}]
[7,null,"Дни дружества, любви, надежд и грусти нежной,",{"$f":"TRIM(SUBSTITUTE(C8,F8,))","v":"Дни дружества, любви, надежд и"},{"$f":"IF(D8=\"\",\"\",LEN(D8))","v":30},"грусти нежной,"]
[8,null,"Когда, поэзии поклонник безмятежный!","Когда, поэзии поклонник безмятежный",{"$f":"IF(D9=\"\",\"\",LEN(D9))","v":35}]
[9,null,"На лире счастливой я тихо воспевал","На лире счастливой я тихо воспевал",{"$f":"IF(D10=\"\",\"\",LEN(D10))","v":34}]
[10,null,"Волнение любви, уныние разлуки —","Волнение любви, уныние разлуки —",{"$f":"IF(D11=\"\",\"\",LEN(D11))","v":32}]
[11,null,"И гул дубрав горам передавал","И гул дубрав горам передавал",{"$f":"IF(D12=\"\",\"\",LEN(D12))","v":28}]
[12,null,"Мои задумчивые звуки...","Мои задумчивые звуки...",{"$f":"IF(D13=\"\",\"\",LEN(D13))","v":23}]
[13,null,"Напрасно! Я влачил постыдной лени груз,",{"$f":"TRIM(SUBSTITUTE(C14,F14,))","v":"Напрасно! Я влачил постыдной лени"},{"$f":"IF(D14=\"\",\"\",LEN(D14))","v":33},"груз,"]
[14,null,"В дремоту хладную невольно погружался,",{"$f":"TRIM(SUBSTITUTE(C15,F15,))","v":"В дремоту хладную невольно"},{"$f":"IF(D15=\"\",\"\",LEN(D15))","v":26},"погружался,"]
[15,null,"Бежал от радостей, бежал от милых муз",{"$f":"TRIM(SUBSTITUTE(C16,F16,))","v":"Бежал от радостей, бежал от милых"},{"$f":"IF(D16=\"\",\"\",LEN(D16))","v":33},"муз"]
[16,null,"И — слезы на глазах — со славою прощался!",{"$f":"TRIM(SUBSTITUTE(C17,F17,))","v":"И — слезы на глазах — со славою"},{"$f":"IF(D17=\"\",\"\",LEN(D17))","v":31},"прощался!"]
[17,null,"Но вдруг, как молнии стрела,","Но вдруг, как молнии стрела,",{"$f":"IF(D18=\"\",\"\",LEN(D18))","v":28}]
[18,null,"Зажглась в увядшем сердце младость,","Зажглась в увядшем сердце младость,",{"$f":"IF(D19=\"\",\"\",LEN(D19))","v":35}]
[19,null,"Душа проснулась, ожила,","Душа проснулась, ожила,",{"$f":"IF(D20=\"\",\"\",LEN(D20))","v":23}]
[20,null,"Узнала вновь любви надежду, скорбь и радость.",{"$f":"TRIM(SUBSTITUTE(C21,F21,))","v":"Узнала вновь любви надежду, скорбь"},{"$f":"IF(D21=\"\",\"\",LEN(D21))","v":34},"и радость."]
[21,null,"Все снова расцвело! Я жизнью трепетал;",{"$f":"TRIM(SUBSTITUTE(C22,F22,))","v":"Все снова расцвело! Я жизнью"},{"$f":"IF(D22=\"\",\"\",LEN(D22))","v":28},"трепетал;"]
[22,null,"Природы вновь восторженный свидетель,",{"$f":"TRIM(SUBSTITUTE(C23,F23,))","v":"Природы вновь восторженный"},{"$f":"IF(D23=\"\",\"\",LEN(D23))","v":26},"свидетель,"]
[23,null,"Живее чувствовал, свободнее дышал,","Живее чувствовал, свободнее дышал,",{"$f":"IF(D24=\"\",\"\",LEN(D24))","v":34}]
[24,null,"Сильней пленяла добродетель...","Сильней пленяла добродетель...",{"$f":"IF(D25=\"\",\"\",LEN(D25))","v":30}]
[25,null,"Хвала любви, хвала богам!","Хвала любви, хвала богам!",{"$f":"IF(D26=\"\",\"\",LEN(D26))","v":25}]
[26,null,"Вновь лиры сладостной раздался голос юный,",{"$f":"TRIM(SUBSTITUTE(C27,F27,))","v":"Вновь лиры сладостной раздался"},{"$f":"IF(D27=\"\",\"\",LEN(D27))","v":30},"голос юный,"]
[27,null,"И с звонким трепетом воскреснувшие струны",{"$f":"TRIM(SUBSTITUTE(C28,F28,))","v":"И с звонким трепетом воскреснувшие"},{"$f":"IF(D28=\"\",\"\",LEN(D28))","v":34},"струны"]
[28,null,"Несу к твоим ногам!..","Несу к твоим ногам!..",{"$f":"IF(D29=\"\",\"\",LEN(D29))","v":21}]